bitfinex/quotes_ETHUSD_20251018
["timestamp","ask_amount","ask_price","bid_price","bid_amount"]
[1760765588447,2.622,3857.2,3857.1,2.59262139]
[1760765588957,2.622,3857.2,3857.1,2.82742139]
[1760765589159,2.622,3857.2,3857.1,3.26082139]
[1760765589373,2.622,3857.2,3856.9,3.37250284]
[1760765589729,2.622,3857.2,3856.9,0.77980107]
[1760765590047,2.622,3857.2,3856.9,3.37254727]
[1760765590247,2.622,3857.2,3856.9,0.77980107]
[1760765590755,2.622,3857.2,3857.0,0.4334]
[1760765591055,2.622,3857.2,3857.1,0.4334]
[1760765591257,2.622,3857.2,3856.9,0.77980107]
[1760765592063,2.622,3857.2,3856.9,3.37254559]
[1760765592355,2.622,3857.2,3857.1,2.59262139]
[1760765594638,2.622,3857.2,3857.1,3.26082139]
[1760765594961,2.622,3857.2,3857.1,2.82742139]
[1760765595139,2.622,3857.2,3857.1,2.59262139]
[1760765596352,2.622,3857.2,3857.0,2.5926872]
[1760765596664,2.622,3857.2,3856.8,1.21320107]
[1760765596665,2.622,3857.2,3856.9,2.59273786]
[1760765596836,2.622,3857.2,3856.8,0.77980107]
[1760765597041,2.622,3857.2,3857.1,2.59262139]
[1760765597447,2.622,3857.2,3857.1,3.02602139]
[1760765597648,2.622,3857.2,3857.0,2.59268835]
[1760765598048,2.622,3857.2,3856.8,1.21320107]
[1760765598253,2.622,3857.2,3856.8,3.80597173]
[1760765598437,2.622,3857.2,3856.8,0.77980107]
[1760765598645,2.622,3857.2,3856.7,0.1296]
[1760765598933,2.7219,3857.2,3856.7,0.90942742]
[1760765599352,2.622,3857.2,3856.7,0.90942742]
[1760765599557,2.622,3857.2,3857.0,2.59265224]
[1760765599868,2.622,3857.2,3857.1,4.32062139]
[1760765600237,2.622,3857.2,3857.1,4.98882139]
[1760765600561,2.622,3857.2,3856.8,0.77980107]
[1760765600766,2.622,3857.2,3857.0,2.59263987]
[1760765601337,2.622,3857.2,3857.1,4.32062139]
[1760765601566,2.622,3857.2,3857.1,1.728]
[1760765601778,2.622,3857.2,3857.1,4.32062139]
[1760765602376,2.622,3857.2,3857.1,4.98882139]
[1760765602881,2.622,3857.2,3857.1,4.32062139]
[1760765603376,2.622,3857.2,3857.1,4.75402139]
[1760765603875,0.04518429,3857.4,3857.2,4.32055418]
[1760765604080,0.04518429,3857.4,3857.2,4.75395418]
[1760765604081,2.623,3857.3,3857.2,4.75395418]
[1760765604575,2.623,3857.3,3857.2,4.32055418]
[1760765604749,2.623,3857.3,3857.2,4.75395418]
[1760765604950,2.623,3857.3,3857.2,5.60632892]
[1760765607578,2.623,3857.3,3857.2,5.17292892]
[1760765608073,2.623,3857.3,3857.2,4.32055418]
[1760765608278,2.623,3857.3,3857.2,5.10025391]
[1760765608442,2.623,3857.3,3857.2,0.77969973]
[1760765608646,2.623,3857.3,3857.1,1.728]
[1760765609757,2.722,3857.3,3857.0,0.77976661]
[1760765609963,2.722,3857.3,3857.0,2.50776661]
[1760765610781,2.722,3857.3,3857.0,3.37245035]
[1760765611276,2.623,3857.3,3857.0,0.77976661]
[1760765611779,2.623,3857.3,3857.2,2.59255418]
[1760765612273,2.623,3857.3,3857.2,1.728]
[1760765612478,2.623,3857.3,3857.2,2.59255418]
[1760765612658,2.623,3857.3,3857.2,1.728]
[1760765613280,2.623,3857.3,3857.0,2.50776661]
[1760765613664,0.099,3857.2,3857.0,0.77976661]
[1760765613869,0.2286,3857.2,3856.9,2.59273689]
[1760765614173,0.1296,3857.2,3857.1,1.728]
[1760765614979,0.1296,3857.2,3856.9,1.728]
[1760765615277,0.1296,3857.2,3856.8,0.78082134]
[1760765615575,0.1296,3857.2,3856.8,3.37362326]
[1760765615746,0.2286,3857.2,3856.8,3.37362326]
[1760765615950,0.2286,3857.2,3856.8,2.50882134]
[1760765616376,0.1296,3857.2,3856.8,3.37363084]
[1760765616581,0.1296,3857.2,3856.8,2.50882134]
[1760765616582,0.099,3857.1,3856.8,2.50882134]
[1760765616881,0.1296,3857.2,3856.8,0.78082134]
[1760765617286,0.1296,3857.2,3856.9,2.59275584]
[1760765617489,0.1296,3857.2,3857.0,1.728]
[1760765617982,0.1296,3857.2,3857.0,2.59267231]
[1760765618483,0.04518429,3857.4,3857.3,2.59248697]
[1760765618781,2.66618429,3857.4,3857.3,4.32048697]
[1760765618984,2.66618429,3857.4,3857.3,4.78388697]
[1760765620674,0.04518429,3857.4,3857.3,4.32048697]
[1760765620852,2.66618429,3857.4,3857.3,4.78388697]
[1760765621054,2.66618429,3857.4,3857.3,5.5635867]
[1760765622589,2.66618429,3857.4,3857.3,6.49271059]
[1760765623359,2.66618429,3857.4,3857.3,5.5635867]
[1760765623582,2.66618429,3857.4,3857.3,2.50769973]
[1760765624372,2.66618429,3857.4,3857.3,5.1001867]
[1760765624766,2.66618429,3857.4,3857.3,2.50769973]
[1760765624972,2.76608429,3857.4,3857.3,1.728]
[1760765627688,2.66618429,3857.4,3856.8,0.001]
[1760765628013,2.60732977,3857.3,3856.8,0.001]
[1760765628400,0.0999,3857.2,3856.8,0.001]
[1760765628601,2.621,3857.1,3856.8,0.001]
[1760765628772,2.60732977,3857.0,3856.8,0.001]
[1760765629102,2.70722977,3857.0,3856.8,0.001]
[1760765629302,0.0999,3856.9,3856.8,0.001]
[1760765630704,0.14509583,3856.9,3856.8,0.001]
[1760765631918,2.60732977,3857.0,3856.8,0.001]
[1760765632384,0.0999,3856.9,3856.8,0.001]
[1760765632782,2.60732977,3857.0,3856.8,0.001]
[1760765633384,0.0999,3856.9,3856.8,0.001]
[1760765635405,0.14509625,3856.9,3856.8,0.001]
[1760765636588,3.55597314,3856.9,3856.8,0.001]
[1760765636802,3.45607314,3856.9,3856.8,0.001]
[1760765637332,3.55597314,3856.9,3856.8,0.001]
[1760765642483,0.04519625,3856.9,3856.8,0.001]
[1760765642684,2.66419625,3856.9,3856.8,0.4618]
[1760765643623,0.04519625,3856.9,3856.8,0.4618]
[1760765643780,2.66419625,3856.9,3856.8,0.4618]
[1760765643986,2.66419625,3856.9,3856.8,0.001]
[1760765647903,2.66419625,3856.9,3856.8,0.4326]
[1760765648103,2.66419625,3856.9,3856.8,0.001]
[1760765648521,2.66419625,3856.9,3856.8,0.4326]
[1760765649129,2.66419625,3856.9,3856.8,0.001]
[1760765649632,0.04519625,3856.9,3856.8,4.75342306]
[1760765649831,2.66619625,3856.9,3856.8,5.24172537]
[1760765650202,2.621,3856.9,3856.8,5.24172537]
[1760765654332,2.621,3856.9,3856.8,2.64890231]
[1760765654533,2.621,3856.9,3856.8,2.1606]
[1760765655435,2.621,3856.9,3856.8,0.001]
[1760765655623,2.7209,3856.9,3856.8,0.001]
[1760765658224,2.62,3856.9,3856.8,0.001]
[1760765659147,2.7199,3856.9,3856.8,0.001]
[1760765660439,0.0451875,3857.0,3856.8,0.001]
[1760765660615,0.0451875,3857.0,3856.9,4.32075584]
[1760765660819,1.3401875,3857.0,3856.9,5.48697832]
[1760765661209,1.3401875,3857.0,3856.9,2.89422248]
[1760765661409,1.3401875,3857.0,3856.9,2.1596]
[1760765662033,1.3401875,3857.0,3856.9,4.75235584]
[1760765665638,1.295,3857.0,3856.9,4.75235584]
[1760765672913,1.295,3857.0,3856.9,4.32075584]
[1760765673112,1.295,3857.0,3856.9,4.78188339]
[1760765674351,1.295,3857.0,3856.9,4.34668339]
[1760765674550,1.295,3857.0,3856.9,4.32075584]
[1760765675414,1.295,3857.0,3856.9,4.75595584]
[1760765676253,1.295,3857.0,3856.9,5.49353234]
[1760765677075,1.295,3857.0,3856.9,5.49453234]
[1760765677376,0.04518589,3857.1,3857.0,2.59268861]
[1760765677591,2.66318589,3857.1,3857.0,4.32068861]
[1760765677871,2.66318589,3857.1,3857.0,4.75588861]
[1760765678077,2.66318589,3857.1,3857.0,5.8369588]
[1760765684382,2.618,3857.1,3857.0,5.8369588]
[1760765685382,0.1908,3857.9,3857.4,4.32041976]
[1760765685687,2.617,3857.8,3857.5,2.59234022]
[1760765686186,2.7169,3857.8,3857.5,2.59234022]
[1760765686761,2.66218252,3857.8,3857.5,2.59234022]
[1760765687082,2.66218252,3857.8,3857.6,2.59223434]
[1760765687287,2.66218252,3857.8,3857.6,2.59222924]
[1760765687961,2.66218252,3857.8,3857.1,0.2334]
[1760765688166,0.1017,3857.7,3857.4,1.728]
[1760765688363,0.1017,3857.6,3857.4,1.728]
[1760765688880,2.66218252,3857.8,3857.2,1.728]
[1760765688881,0.1017,3857.7,3857.2,1.728]
[1760765689083,2.66218252,3857.8,3857.2,1.728]
[1760765689283,0.1017,3857.6,3857.2,1.728]
[1760765689488,2.66218252,3857.8,3857.4,1.728]
[1760765689785,0.1017,3857.5,3857.4,2.59241976]
[1760765689989,2.66218252,3857.8,3857.5,1.728]
[1760765690288,0.1017,3857.7,3857.5,1.728]
[1760765690656,2.66218252,3857.8,3857.5,1.728]
[1760765690857,0.1017,3857.7,3857.5,1.728]
[1760765691071,0.1017,3857.6,3857.4,1.728]
[1760765691669,0.1017,3857.5,3857.4,1.728]
[1760765692861,0.1017,3857.5,3857.4,4.32041976]
[1760765693086,0.1017,3857.7,3857.4,4.32041976]
[1760765693292,0.1017,3857.6,3857.4,4.32041708]
[1760765693492,0.1017,3857.6,3857.4,1.728]
[1760765694200,0.1017,3857.6,3857.3,1.728]
[1760765694694,0.1017,3857.5,3857.0,1.8576]
[1760765694855,0.1296,3857.6,3857.1,2.59256269]
[1760765695196,0.1017,3857.5,3857.1,2.59256269]
[1760765695500,0.146884,3857.5,3857.1,2.59256269]
[1760765695656,0.146884,3857.5,3857.3,1.728]
[1760765697282,0.146884,3857.5,3857.1,0.001]
[1760765697471,0.146884,3857.5,3857.3,1.728]
[1760765698564,2.615,3857.4,3857.3,1.728]
[1760765699286,2.615,3857.4,3857.3,2.59248697]
[1760765699594,2.615,3857.4,3857.3,1.728]
[1760765701705,2.615,3857.4,3857.1,0.001]
[1760765701706,3.0058484,3857.4,3857.1,0.001]
[1760765701865,2.61068816,3857.2,3857.1,0.001]
[1760765702384,2.71238816,3857.2,3857.1,0.001]
[1760765703391,2.89983656,3857.4,3857.1,0.001]
[1760765703597,2.615,3857.3,3857.1,0.001]
[1760765703802,0.38978788,3858.8,3857.2,0.4627]
[1760765704110,2.616,3858.3,3857.7,2.59220833]
[1760765704314,2.616,3858.3,3857.8,2.59214758]
[1760765704793,0.1026,3858.2,3857.7,2.59219637]
[1760765705318,0.04517937,3858.1,3857.7,2.59219637]
[1760765705821,0.04517937,3858.1,3857.6,0.4627]
[1760765705822,0.04517937,3858.1,3857.6,3.05496302]
[1760765706615,0.04517937,3858.1,3857.7,2.59220721]
[1760765707494,0.04517937,3858.1,3857.6,3.05496572]
[1760765707894,0.04517937,3858.1,3857.7,2.5922047]
[1760765708205,0.04517937,3858.1,3857.8,2.59211314]
[1760765708714,0.04517937,3858.1,3857.8,3.05481314]
[1760765709227,0.04517937,3858.1,3857.9,2.59202277]
[1760765709526,2.616,3858.0,3857.9,3.05472277]
[1760765712082,2.616,3858.0,3857.5,0.1296]
[1760765712284,2.616,3858.0,3857.6,0.4627]
[1760765712587,2.616,3858.0,3857.7,3.05491587]
[1760765713586,2.616,3858.0,3857.5,0.5923]
[1760765713985,2.616,3858.0,3857.7,1.728]
[1760765714396,2.7197,3858.0,3857.7,1.728]
[1760765715529,2.61068816,3857.8,3857.5,0.1296]
[1760765715696,0.1296,3857.7,3857.2,2.59255418]
[1760765715901,0.1296,3857.7,3857.3,2.30584752]
[1760765716102,0.1296,3857.7,3857.3,0.57784752]
[1760765716301,0.17478242,3857.7,3857.3,0.57784752]
[1760765716502,0.17478242,3857.7,3857.3,2.30584752]
[1760765717433,0.17478242,3857.7,3857.6,0.001]
[1760765718303,0.27928242,3857.7,3857.6,0.001]
[1760765728566,0.17478242,3857.7,3857.6,0.001]
[1760765729073,0.27928242,3857.7,3857.6,0.001]
[1760765730579,0.17478242,3857.7,3857.6,0.001]
[1760765730739,1.03008008,3857.7,3857.6,0.001]
[1760765731439,0.98489766,3857.7,3857.6,0.001]
[1760765732135,0.62388788,3857.7,3857.6,0.001]
[1760765733272,0.51938788,3857.7,3857.6,0.001]
[1760765733582,2.615,3857.7,3857.6,0.001]
[1760765734269,2.7195,3857.7,3857.6,0.001]
[1760765735050,3.08050978,3857.7,3857.6,0.001]
[1760765735381,3.47029766,3857.7,3857.6,0.001]
[1760765735945,3.51548898,3857.7,3857.6,0.001]
[1760765740265,3.41098898,3857.7,3857.6,0.001]
[1760765741772,2.66019132,3857.7,3857.6,0.4334]
[1760765742288,2.66019132,3857.7,3857.6,0.001]
[1760765742967,0.04519132,3857.7,3857.6,0.001]
[1760765743290,2.66019132,3857.7,3857.6,0.001]
[1760765744276,0.04519132,3857.7,3857.6,0.4334]
[1760765744594,2.66019132,3857.7,3857.6,0.4334]
[1760765744782,0.04519132,3857.7,3857.6,0.4334]
[1760765744978,2.66019132,3857.7,3857.6,0.4334]
[1760765746889,0.04519132,3857.7,3857.6,0.4334]
[1760765747093,2.66019132,3857.7,3857.6,0.4334]
[1760765747592,2.615,3857.7,3857.6,0.4334]
[1760765748072,0.1296,3857.8,3857.6,0.4334]
[1760765748272,2.615,3857.7,3857.6,0.4334]
[1760765749166,2.615,3857.7,3857.6,0.001]
[1760765750790,2.66018348,3857.7,3857.6,0.001]
[1760765755506,5.79386951,3857.7,3857.6,0.001]
[1760765756906,0.04518348,3857.7,3857.6,0.001]
[1760765757086,2.66018348,3857.7,3857.6,0.4334]
[1760765760197,5.79386951,3857.7,3857.6,0.001]
[1760765762425,0.04518348,3857.7,3857.6,0.001]
[1760765762726,2.65918348,3857.7,3857.6,0.4685]
[1760765764220,0.04518348,3857.7,3857.6,0.4685]
[1760765764392,2.65918348,3857.7,3857.6,0.4685]
[1760765764587,2.65918348,3857.7,3857.6,1.20672839]
[1760765765179,2.65918348,3857.7,3857.6,3.79901374]
[1760765765379,2.65918348,3857.7,3857.6,5.52701374]
[1760765765881,2.614,3857.7,3857.6,5.52701374]
[1760765766819,2.614,3857.7,3857.6,2.93472839]
[1760765767200,2.614,3857.7,3857.6,5.52701374]
[1760765769793,2.614,3857.7,3857.6,2.93472839]
[1760765769987,2.614,3857.7,3857.6,4.78878535]
[1760765771490,0.04517823,3857.8,3857.7,4.32021816]
[1760765771689,0.04517823,3857.8,3857.7,4.81034034]
[1760765771690,2.65917823,3857.8,3857.7,4.81034034]
[1760765771904,2.65917823,3857.8,3857.7,4.78441816]
[1760765772121,2.65917823,3857.8,3857.7,6.31470844]
[1760765773292,0.04517823,3857.8,3857.7,6.31470844]
[1760765773492,2.65917823,3857.8,3857.7,6.31470844]
[1760765774723,0.1288,3858.7,3858.4,2.59170426]
[1760765774925,2.614,3858.6,3858.5,0.0259168]
[1760765775228,2.614,3858.6,3858.4,2.59170426]
[1760765775434,2.614,3858.6,3858.5,0.4642]
[1760765776034,2.614,3858.6,3858.4,2.32824493]
[1760765776235,2.614,3858.6,3858.4,4.91998824]
[1760765776440,2.614,3858.6,3858.4,3.65618824]
[1760765776602,2.614,3858.6,3858.5,0.4642]
[1760765777218,2.614,3858.6,3858.4,2.79244493]
[1760765777420,2.65917244,3858.6,3858.4,3.65618435]
[1760765777753,2.65917244,3858.6,3858.5,3.46999594]
[1760765778217,2.65917244,3858.6,3858.5,3.44407914]
[1760765778847,2.65917244,3858.6,3858.5,5.17207914]
[1760765778848,0.04517244,3858.6,3858.5,5.17207914]
[1760765779018,2.65917244,3858.6,3858.5,5.17207914]
[1760765779719,2.65917244,3858.6,3858.5,2.11619844]
[1760765780819,2.65917244,3858.6,3858.5,4.70787914]
[1760765783165,2.614,3858.6,3858.5,5.17207914]
[1760765783545,2.614,3858.6,3858.5,2.11619844]
[1760765783875,2.614,3858.6,3858.5,1.728]
[1760765787281,2.614,3858.6,3858.5,1.729]
[1760765791150,2.614,3858.6,3858.5,0.001]
[1760765796765,2.614,3858.6,3858.5,3.0529975]
[1760765797094,0.04517031,3858.7,3858.6,2.59161353]
[1760765797283,2.65817031,3858.7,3858.6,3.19228547]
[1760765797487,2.65817031,3858.7,3858.6,3.72956934]
[1760765798201,2.65817031,3858.7,3858.6,3.85836934]
[1760765799868,2.613,3858.7,3858.6,3.85836934]
[1760765805074,2.613,3858.7,3858.6,0.70355581]
[1760765805273,2.613,3858.7,3858.6,0.1288]
[1760765805509,2.613,3858.7,3858.6,2.72041353]
[1760765805895,2.613,3858.7,3858.6,2.72141353]
[1760765806724,2.613,3858.7,3858.6,3.15581353]
[1760765807011,2.613,3858.7,3858.6,3.73066837]
[1760765809912,2.613,3858.7,3858.6,3.29626837]
[1760765811916,2.7128,3858.7,3858.6,0.1298]
[1760765819321,2.7128,3858.7,3858.6,2.72141353]
[1760765819694,2.7128,3858.7,3858.6,0.1298]
[1760765820321,2.7128,3858.7,3858.6,2.72141353]
[1760765820822,2.613,3858.7,3858.6,2.72141353]
[1760765826028,0.0451645,3858.8,3858.7,2.59154637]
[1760765826318,2.6581645,3858.8,3858.7,2.59154637]
[1760765826493,2.6581645,3858.8,3858.6,2.59258878]
[1760765826694,2.6581645,3858.8,3858.7,0.77945461]
[1760765827537,2.6581645,3858.8,3858.7,3.37100098]
[1760765828251,2.6581645,3858.8,3858.7,3.83880098]
[1760765828740,2.6581645,3858.8,3858.7,5.56680098]
[1760765828911,2.6581645,3858.8,3858.7,5.95460661]
[1760765829845,2.6581645,3858.8,3858.7,5.48680661]
[1760765830147,2.6581645,3858.8,3858.7,2.89526024]
[1760765830443,2.6581645,3858.8,3858.7,2.50745461]
[1760765831228,2.6581645,3858.8,3858.7,5.09900098]
[1760765832045,2.6581645,3858.8,3858.7,2.50745461]
[1760765832251,2.6581645,3858.8,3858.7,0.77945461]
[1760765832418,2.7571645,3858.8,3858.7,0.77945461]
[1760765833435,2.6581645,3858.8,3858.7,0.77945461]
[1760765833627,2.6581645,3858.8,3858.7,3.37100098]
[1760765833829,2.6581645,3858.8,3858.7,3.83880098]
[1760765834428,2.6581645,3858.8,3858.7,3.37100098]
[1760765835564,2.6581645,3858.8,3858.7,3.83880098]
[1760765837366,2.6581645,3858.8,3858.7,6.22292621]
[1760765837718,0.0451645,3858.8,3858.7,6.22292621]
[1760765837919,2.6581645,3858.8,3858.7,6.35172621]
[1760765841358,2.6581645,3858.8,3858.7,4.62372621]
[1760765843960,2.6581645,3858.8,3858.7,4.15592621]
[1760765844160,2.7586645,3858.8,3858.7,0.90825461]
[1760765844349,2.7586645,3858.8,3858.7,0.77945461]
[1760765845441,5.3676204,3858.8,3858.6,0.001]
[1760765846353,0.1005,3858.7,3858.6,0.001]
[1760765846558,2.7586645,3858.8,3858.6,0.001]
[1760765847851,0.1005,3858.7,3858.6,0.001]
[1760765849771,2.6581645,3858.8,3858.6,2.59260564]
[1760765849972,2.6581645,3858.8,3858.6,0.001]
[1760765850475,2.7586645,3858.8,3858.6,0.001]
[1760765851046,2.6581645,3858.8,3858.6,0.001]
[1760765851767,2.7586645,3858.8,3858.6,0.001]
[1760765853887,2.7586645,3858.8,3858.5,3.32801421]
[1760765854092,2.7135,3858.8,3858.5,3.32801421]
[1760765855072,2.75866911,3858.8,3858.5,3.32801421]
[1760765855253,2.75866911,3858.8,3858.5,2.59167544]
[1760765856370,2.65816911,3858.8,3858.4,3.37121457]
[1760765856873,2.65816911,3858.8,3858.5,2.5916807]
[1760765857389,2.65816911,3858.8,3858.6,2.59160991]
[1760765857554,2.65816911,3858.8,3858.7,2.59154637]
[1760765858586,5.54122501,3858.8,3858.6,0.77947284]
[1760765859667,5.54122501,3858.8,3858.6,3.37107934]
[1760765859992,5.26712501,3858.8,3858.6,3.37107934]
[1760765860459,5.54122501,3858.8,3858.6,3.37107934]
[1760765861382,5.54322501,3858.8,3858.6,3.37107934]
[1760765862393,5.54322501,3858.8,3858.7,2.59154637]
[1760765862394,0.04716911,3858.8,3858.7,2.59154637]
[1760765862558,0.04716911,3858.8,3858.7,3.05524637]
[1760765862906,0.04716911,3858.8,3858.5,2.59267476]
[1760765863055,0.04716911,3858.8,3858.7,0.61]
[1760765863260,0.002,3858.8,3858.7,3.20154637]
[1760765863508,0.002,3858.8,3858.7,4.31694304]
[1760765863799,2.614,3858.8,3858.7,4.29102758]
[1760765866196,2.614,3858.8,3858.7,3.82732758]
[1760765866701,2.614,3858.8,3858.7,4.29102758]
[1760765872385,2.614,3858.8,3858.7,4.41982758]
[1760765879329,0.002,3858.8,3858.7,4.41982758]
[1760765880432,0.002,3858.8,3858.7,3.95612758]
[1760765885009,0.002,3858.8,3858.7,4.39742758]
[1760765885310,0.002,3858.8,3858.7,3.95612758]
[1760765886943,0.002,3858.8,3858.7,4.39742758]
[1760765890356,0.002,3858.8,3858.7,3.95612758]
[1760765891143,0.002,3858.8,3858.7,3.33034637]
[1760765891633,0.1023,3858.8,3858.7,3.33034637]
[1760765892546,0.002,3858.8,3858.7,0.7388]
[1760765892714,0.1023,3858.8,3858.7,0.7388]
[1760765892914,0.1023,3858.8,3858.7,0.61]
[1760765894317,0.1023,3858.8,3858.7,3.20154637]
[1760765895417,0.002,3858.8,3858.7,4.26106422]
[1760765895645,0.002,3858.8,3858.7,4.38986422]
[1760765895963,0.002,3858.8,3858.7,3.92264876]
[1760765897027,0.002,3858.8,3858.7,4.36394876]
[1760765897226,0.002,3858.8,3858.7,4.38986422]
[1760765898541,0.002,3858.8,3858.7,4.36394876]
[1760765901835,0.002,3858.8,3858.7,3.92264876]
[1760765902249,0.002,3858.8,3858.7,4.36394876]
[1760765906044,0.002,3858.8,3858.7,3.92264876]
[1760765906248,0.002,3858.8,3858.7,4.36394876]
[1760765908152,0.002,3858.8,3858.7,4.38986422]
[1760765911689,0.002,3858.8,3858.7,5.98906422]
[1760765911982,1e-08,3859.2,3859.1,2.59127775]
[1760765912189,1e-08,3859.2,3859.1,7.87925439]
[1760765912356,1e-08,3859.2,3859.1,8.32614162]
[1760765912858,1e-08,3859.2,3859.1,8.43001843]
[1760765920206,1e-08,3859.2,3859.1,11.16201843]
[1760765921773,1e-08,3859.2,3859.1,24.72607843]
[1760765921974,1e-08,3859.2,3859.1,19.13649143]
[1760765922298,1e-08,3859.2,3859.1,17.58860243]
[1760765923376,1e-08,3859.2,3859.1,13.29081843]
[1760765925605,1e-08,3859.2,3859.1,11.05781843]
[1760765928803,1e-08,3859.2,3859.1,10.58501843]
[1760765928992,1e-08,3859.2,3859.1,7.85301843]
[1760765929904,1e-08,3859.2,3859.1,11.05881843]
[1760765934622,1e-08,3859.2,3859.1,10.58601843]
[1760765937527,1e-08,3859.2,3859.1,7.85401843]
[1760765938810,0.1566,3859.9,3859.8,2.59080781]
[1760765939010,0.002,3860.0,3859.9,2.59074069]
[1760765939800,0.002,3860.0,3859.9,2.69460671]
[1760765940431,0.002,3860.0,3859.9,4.44851411]
[1760765941935,0.002,3860.0,3859.9,4.90531411]
[1760765942349,0.002,3860.0,3859.9,5.03263403]
[1760765942525,0.002,3860.0,3859.9,6.37976413]
[1760765942838,0.002,3860.0,3859.9,6.35385673]
[1760765943010,0.002,3860.0,3859.9,6.22653681]
[1760765943342,0.855,3861.0,3860.3,4.31847224]
[1760765943506,0.855,3861.0,3860.3,4.47317696]
[1760765943844,0.002,3861.0,3860.3,5.74529236]
[1760765944029,0.002,3861.0,3860.3,5.71938764]
[1760765944415,0.153,3861.4,3860.4,1.728]
[1760765944617,0.153,3861.4,3861.3,2.58980136]
[1760765944940,0.153,3861.4,3861.3,2.71860136]
[1760765945311,0.153,3861.4,3861.3,2.89800136]
[1760765955368,0.22453831,3862.0,3861.5,2.58966722]
[1760765955560,0.153,3861.7,3861.5,2.58966722]
[1760765955868,0.153,3861.7,3861.5,2.71846722]
[1760765956170,0.22453831,3862.0,3861.5,2.94300553]
[1760765956669,0.1794,3862.0,3861.5,2.94300553]
[1760765958946,0.1794,3862.0,3861.5,5.12710553]
[1760765960375,0.1794,3862.0,3861.5,4.67100553]
[1760765960572,0.1794,3862.0,3861.5,5.75873407]
[1760765960944,0.1794,3862.0,3861.5,6.21483407]
[1760765963288,0.002,3862.0,3861.5,6.21483407]
[1760765963986,0.002,3862.0,3861.5,8.82383407]
[1760765973616,0.1018,3861.6,3861.5,5.75873407]
[1760765974496,0.002,3862.4,3862.3,4.31713082]
[1760765974791,0.002,3862.4,3862.3,5.00776523]
[1760765975165,0.002,3862.4,3862.3,5.16076523]
[1760765976063,1.9402,3864.1,3862.3,5.16076523]
[1760765976064,2.60534756,3863.9,3862.3,5.16076523]
[1760765976267,0.2131,3865.0,3862.8,1.728]
[1760765976510,0.2131,3865.0,3864.9,2.58738906]
[1760765976717,0.2131,3865.0,3864.9,2.61326295]
[1760765976863,0.2119,3865.3,3865.2,2.58718824]
[1760765977386,0.1619,3865.3,3865.2,2.58718824]
[1760765978122,0.1001,3865.8,3865.7,2.5868536]
[1760765978621,0.2614,3865.8,3865.7,2.5868536]
[1760765980595,0.1613,3865.8,3865.7,2.5868536]
[1760765981117,2.60534756,3867.2,3865.7,2.5868536]
[1760765981118,0.099,3866.3,3866.2,2.58651906]
[1760765981523,2.60534756,3868.1,3867.1,2.58591026]
[1760765981728,0.1631,3867.2,3867.1,2.58591026]
[1760765982396,0.1631,3867.2,3867.1,3.36357268]
[1760765984099,2.198,3868.1,3867.4,2.58571017]
[1760765984300,0.099,3867.6,3867.4,2.58571017]
[1760765984528,0.198,3867.6,3867.5,0.1288]
[1760765985140,0.099,3867.6,3867.5,2.74030613]
[1760765985299,0.099,3867.6,3867.5,2.71444964]
[1760765986530,0.0450636,3867.7,3867.6,2.58558279]
[1760765987811,0.0450636,3867.7,3867.6,3.36313637]
[1760765989405,0.0450636,3867.7,3867.6,4.0948552]
[1760765989644,0.1288,3868.8,3867.6,4.0948552]
[1760765989645,0.099,3868.6,3868.1,2.58524857]
[1760765989954,0.04505575,3868.3,3867.9,2.58534664]
[1760765990238,0.04505575,3868.3,3868.2,0.1288]
[1760765990404,0.04505575,3868.3,3868.2,0.90627096]
[1760765990605,0.04505575,3868.3,3868.2,0.93212277]
[1760765990802,0.04505575,3868.3,3868.2,2.58518173]
[1760765991345,2.60534756,3869.7,3868.2,2.58518173]
[1760765991346,0.1631,3869.2,3868.6,2.58485029]
[1760765991663,0.04504837,3869.1,3868.8,2.58478037]
[1760765992313,0.04504837,3869.1,3868.8,2.58477626]
[1760765992917,0.20814837,3869.1,3868.5,2.58492013]
[1760765993117,0.20814837,3869.1,3868.6,2.58489209]
[1760765994054,0.04504837,3869.1,3868.6,2.58491177]
[1760765994254,0.04504837,3869.1,3868.8,2.58475901]
[1760765994433,0.04504837,3869.1,3868.7,2.58484387]
[1760765995557,0.04504837,3869.1,3869.0,2.58464719]
[1760765995730,0.04504837,3869.1,3868.9,2.5847075]
[1760765996258,0.04504837,3869.1,3868.9,0.56015547]
[1760765996467,0.04504837,3869.1,3869.0,3.01664719]
[1760765997923,0.04504837,3869.1,3868.9,2.58469241]
[1760765998262,0.04504837,3869.1,3868.5,0.77730175]
[1760765998456,0.1631,3869.0,3868.5,0.77730175]
[1760765998951,0.04504837,3869.1,3868.5,0.77730175]
[1760765999164,0.099,3868.6,3867.6,0.29971883]
[1760765999333,2.618,3868.5,3868.1,2.58518823]
[1760765999535,2.618,3868.5,3867.9,3.3627816]
[1760765999725,2.618,3868.5,3868.2,2.58516781]
[1760766000055,2.618,3868.5,3868.2,3.02066781]
[1760766000265,2.618,3868.5,3868.3,2.61094159]
[1760766000425,2.619,3868.7,3868.6,2.58490439]
[1760766000756,0.04504837,3869.1,3868.7,2.5848455]
[1760766000956,0.04504837,3869.1,3868.7,2.58483941]
[1760766001255,2.619,3869.0,3868.6,2.58489433]
[1760766001457,0.04504837,3869.1,3868.7,0.4355]
[1760766001645,0.04504837,3869.1,3869.0,2.58464719]
[1760766002159,0.002,3869.1,3869.0,3.02014719]
[1760766002322,0.002,3869.1,3869.0,4.74814719]
[1760766002722,0.002,3869.1,3869.0,4.87760275]
[1760766002966,0.13525316,3872.8,3869.1,1.728]
[1760766002967,0.003,3870.8,3869.1,1.728]
[1760766003265,0.003,3870.8,3869.3,4.31244679]
[1760766003444,0.1624,3871.2,3870.6,2.58353032]
[1760766003681,0.1624,3871.2,3870.7,2.58349795]
[1760766003682,0.13,3870.9,3870.7,2.58349795]
[1760766003935,0.358,3871.0,3870.7,0.54255555]